fUSD/lending_fUSD_20250507
["ID","MTS","AMOUNT","RATE_DAILY","PERIOD"]
[360229409,1746639056884,-151.0,0.00019986,2]
[360229411,1746639056894,-151.0,0.00019986,2]
[360229413,1746639056905,-151.0,0.00019986,2]
[360229415,1746639056919,-158.718884,0.00019986,2]
[360229417,1746639056929,-151.0,0.00019986,2]
[360229419,1746639056939,-151.0,0.00019986,2]
[360229421,1746639056948,-151.0,0.00019986,2]
[360229423,1746639056958,-151.0,0.00019986,2]
[360229425,1746639056968,-151.0,0.00019986,2]
[360229427,1746639056978,-151.0,0.00019986,2]
[360229429,1746639056988,-381.739181,0.00019986,2]
[360229431,1746639056998,-381.739181,0.00019986,2]
[360229433,1746639057008,-381.739181,0.00019986,2]
[360229436,1746639057018,-381.739181,0.00019986,2]
[360229438,1746639057027,-150.0,0.00019986,2]
[360229440,1746639057038,-151.0,0.00019986,2]
[360229442,1746639057048,-151.0,0.00019986,2]
[360229444,1746639057058,-151.0,0.00019986,2]
[360229446,1746639057069,-151.0,0.00019986,2]
[360229448,1746639057078,-162.584571,0.00019986,2]
[360229450,1746639057088,-213.643996,0.00019986,2]
[360229452,1746639057099,-461.874172,0.00019986,2]
[360229454,1746639057108,-461.874172,0.00019986,2]
[360229456,1746639057118,-461.874172,0.00019986,2]
[360229458,1746639057128,-461.874172,0.00019986,2]
[360229460,1746639057139,-315.73121,0.00019986,2]
[360229462,1746639057148,-315.73121,0.00019986,2]
[360229464,1746639057158,-315.73121,0.00019986,2]
[360229466,1746639057168,-315.73121,0.00019986,2]
[360229468,1746639057178,-176.019566,0.00019986,2]
[360229470,1746639057187,-151.0,0.00019986,2]
[360229472,1746639057198,-151.0,0.00019986,2]
[360229474,1746639057207,-151.0,0.00019986,2]
[360229476,1746639057218,-151.0,0.00019986,2]
[360229478,1746639057229,-151.0,0.00019986,2]
[360229480,1746639057239,-151.0,0.00019986,2]
[360229482,1746639057249,-1202.365844,0.00019986,2]
[360229484,1746639057259,-1202.365844,0.00019986,2]
[360229486,1746639057269,-1202.365844,0.00019986,2]
[360229488,1746639057280,-886.09808826,0.00019986,2]
[360229530,1746639057689,-450.0,0.0001987,2]
[360229532,1746639057699,-450.0,0.0001987,2]
[360229534,1746639057710,-450.0,0.0001987,2]
[360229541,1746639057776,-1142.0,0.00019961,2]
[360229543,1746639057786,-450.0,0.0001997,2]
[360229546,1746639057796,-450.0,0.0001997,2]
[360229548,1746639057806,-1009.73,0.00019979,2]
[360229550,1746639057817,-151.0,0.00019982,2]
[360229551,1746639057826,-1009.73,0.00019984,2]
[360229553,1746639057836,-151.0,0.00019984,2]
[360229555,1746639057845,-1009.73,0.00019984,2]
[360229557,1746639057855,-151.0,0.00019984,2]
[360229559,1746639057865,-151.0,0.00019984,2]
[360229562,1746639057875,-1009.73,0.00019985,2]
[360229564,1746639057884,-119.784015,0.00019985,2]
[360229567,1746639057906,-450.0,0.0001987,2]
[360229569,1746639057922,-31.215985,0.00019985,2]
[360229571,1746639057931,-151.0,0.00019985,2]
[360229573,1746639057941,-151.0,0.00019985,2]
[360229575,1746639057950,-151.0,0.00019985,2]
[360229577,1746639057962,-316.26775574,0.00019986,2]
[360229579,1746639057973,-281.253674,0.00019986,2]
[360229581,1746639057982,-151.0,0.00019986,2]
[360229583,1746639057993,-151.0,0.00019986,2]
[360229585,1746639058002,-155.115852,0.00019986,2]
[360229587,1746639058012,-151.0,0.00019986,2]
[360229589,1746639058021,-151.0,0.00019986,2]
[360229591,1746639058030,-151.0,0.00019986,2]
[360229593,1746639058041,-151.0,0.00019986,2]
[360229595,1746639058051,-151.0,0.00019986,2]
[360229597,1746639058061,-151.0,0.00019986,2]
[360229599,1746639058071,-151.0,0.00019986,2]
[360229601,1746639058081,-151.0,0.00019986,2]
[360229602,1746639058090,-151.0,0.00019986,2]
[360229604,1746639058099,-151.0,0.00019986,2]
[360229606,1746639058109,-151.0,0.00019986,2]
[360229608,1746639058119,-151.0,0.00019986,2]
[360229610,1746639058128,-151.0,0.00019986,2]
[360229612,1746639058138,-151.0,0.00019986,2]
[360229614,1746639058147,-151.0,0.00019986,2]
[360229616,1746639058158,-151.0,0.00019986,2]
[360229618,1746639058167,-151.0,0.00019986,2]
[360229620,1746639058177,-151.0,0.00019986,2]
[360229622,1746639058187,-395.536696,0.00019986,2]
[360229624,1746639058197,-395.536696,0.00019986,2]
[360229626,1746639058208,-395.536696,0.00019986,2]
[360229628,1746639058217,-395.536696,0.00019986,2]
[360229630,1746639058226,-395.536696,0.00019986,2]
[360229632,1746639058236,-395.536696,0.00019986,2]
[360229634,1746639058246,-151.0,0.00019986,2]
[360229636,1746639058255,-151.0,0.00019986,2]
[360229638,1746639058264,-530.581615,0.00019986,2]
[360229640,1746639058274,-530.581615,0.00019986,2]
[360229642,1746639058284,-530.581615,0.00019986,2]
[360229644,1746639058293,-530.581615,0.00019986,2]
[360229646,1746639058303,-530.581615,0.00019986,2]
[360229648,1746639058313,-530.581615,0.00019986,2]
[360229650,1746639058322,-151.0,0.00019986,2]
[360229652,1746639058333,-151.0,0.00019986,2]
[360229654,1746639058342,-151.0,0.00019986,2]
[360229656,1746639058352,-151.0,0.00019986,2]
[360229658,1746639058361,-151.0,0.00019986,2]
[360229660,1746639058371,-222.053264,0.00019986,2]
[360229662,1746639058380,-151.0,0.00019986,2]
[360229664,1746639058389,-151.0,0.00019986,2]
[360229666,1746639058398,-3285.48576107,0.00019986,2]
[360229668,1746639058410,-1869.57692506,0.00019986,2]
[360229672,1746639058435,-450.0,0.0001987,2]
[360229674,1746639058445,-1412.08617678,0.00019986,2]
[360229785,1746639191239,217.09271653,0.0003,30]
[360229787,1746639249770,166.81,0.00015139,2]
[360229788,1746639373521,402.44,0.00018931,2]
[360229789,1746639491053,250.0,0.00017,2]
[360229790,1746639492129,300.0,0.00019,2]
[360229791,1746639504649,196.78,0.00018876,2]
[360229792,1746639504863,196.78,0.00028314,120]
[360229793,1746639554748,154.55,0.00018868,2]
[360229794,1746639575841,150.0,0.00018986,7]
[360229795,1746639586698,1000.0,0.00018871,2]
[360229796,1746639610482,150.0,0.0003,30]
[360229797,1746639613140,150.0,0.0003,30]
[360229798,1746639614325,166.59,0.00019437,2]
[360229799,1746639615695,150.0,0.0003,30]
[360229800,1746639728368,383.306369,7.945e-05,2]
[360229801,1746639919590,751.74,0.00016984,2]
[360229802,1746639919800,751.74,0.00019248,2]
[360229803,1746639933299,23900.0,0.00018907,2]
[360229804,1746639982063,1817.36,0.00018879,2]
[360229805,1746640129779,2000.0,0.00027397,30]
[360229810,1746640231720,-1000.0,0.00019719,2]
[360229811,1746640231731,-351.93896041,0.00019719,2]
[360229812,1746640231741,-166.63628409,0.00019719,2]
[360229813,1746640231752,-200.0,0.0001972,2]
[360229814,1746640231762,-200.0,0.00019721,2]
[360229815,1746640231772,-971.73731926,0.0001977,2]
[360229816,1746640231782,-971.73731922,0.00019784,2]
[360229817,1746640231797,-1200.0,0.00019798,2]
[360229818,1746640231807,-300.0,0.00019798,2]
[360229819,1746640231817,-735.10210035,0.00019799,2]
[360229820,1746640231830,-236.63521887,0.00019799,2]
[360229821,1746640231840,-475.388,0.00019799,2]
[360229822,1746640231851,-50.1522033,0.00019799,2]
[360229823,1746640231869,-533.36461618,0.00019799,2]
[360229824,1746640231879,-76.51885869,0.00019812,2]
[360229825,1746640231891,-223.48114131,0.00019812,2]
[360229826,1746640231902,-971.73731922,0.00019813,2]
[360229827,1746640231912,-2000.0,0.00019826,2]
[360229828,1746640231922,-200.0,0.00019826,2]
[360229829,1746640231932,-971.73731922,0.00019828,2]
[360229830,1746640231942,-971.73731922,0.00019842,2]
[360229831,1746640231952,-207.4,0.00019848,2]
[360229832,1746640231961,-556.12689673,0.00019857,2]
[360229833,1746640231974,-415.61042249,0.00019857,2]
[360229834,1746640231983,-151.0,0.00019858,2]
[360229835,1746640231994,-668.65185757,0.00019858,2]
[360229836,1746640232003,-21391.7177379,0.0001986,2]
[360229837,1746640232014,-500.0,0.00019869,2]
[360229838,1746640232024,-321.14913772,0.00019869,2]
[360229839,1746640232034,-500.0,0.00019869,2]
[360229840,1746640232044,-429.23633257,0.00019869,2]
[360229842,1746640232053,-619.26648985,0.00019869,2]
[360229844,1746640232063,-500.0,0.00019869,2]
[360229846,1746640232072,-500.0,0.00019869,2]
[360229848,1746640232082,-500.0,0.00019869,2]
[360229850,1746640232092,-500.0,0.00019869,2]
[360229852,1746640232101,-248.28640256,0.00019869,2]
[360229854,1746640232111,-500.0,0.00019869,2]
[360229856,1746640232122,-500.0,0.00019869,2]
[360229857,1746640232132,-500.0,0.00019869,2]
[360229860,1746640232143,-450.0,0.0001987,2]
[360229862,1746640232153,-500.0,0.0001987,2]
[360229863,1746640232163,-500.0,0.0001987,2]
[360229865,1746640232173,-242.51287777,0.0001987,2]
[360229867,1746640232183,-450.0,0.0001987,2]
[360229869,1746640232192,-500.0,0.0001987,2]
[360229871,1746640232202,-500.0,0.0001987,2]
[360229873,1746640232211,-450.0,0.0001987,2]
[360229876,1746640232230,-450.0,0.0001987,2]
[360229879,1746640232245,-450.0,0.0001987,2]
[360229882,1746640232255,-580.16534291,0.0001987,2]
[360229886,1746640232265,-450.0,0.0001987,2]
[360229889,1746640232275,-450.0,0.0001987,2]
[360229892,1746640232285,-450.0,0.0001987,2]
[360229895,1746640232295,-500.0,0.0001987,2]
[360229897,1746640232305,-450.0,0.0001987,2]
[360229901,1746640232315,-500.0,0.0001987,2]
[360229903,1746640232325,-510.77461301,0.0001987,2]
[360229906,1746640232336,-500.0,0.0001987,2]
[360229909,1746640232349,-500.0,0.0001987,2]
[360229911,1746640232359,-450.0,0.0001987,2]
[360229913,1746640232370,-1000.0,0.0001987,2]
[360229915,1746640232379,-450.0,0.0001987,2]
[360229917,1746640232390,-450.0,0.0001987,2]
[360229919,1746640232401,-500.0,0.0001987,2]
[360229921,1746640232411,-500.0,0.0001987,2]
[360229923,1746640232422,-502.93839135,0.0001987,2]
[360229925,1746640232433,-500.0,0.0001987,2]
[360229927,1746640232444,-501.61,0.0001987,2]
[360229929,1746640232454,-450.0,0.0001987,2]
[360229931,1746640232464,-450.0,0.0001987,2]
[360229933,1746640232474,-450.0,0.0001987,2]
[360229935,1746640232484,-500.0,0.0001987,2]
[360229937,1746640232495,-450.0,0.0001987,2]
[360229939,1746640232506,-500.0,0.0001987,2]
[360229941,1746640232516,-454.11846088,0.0001987,2]
[360229943,1746640232526,-500.0,0.0001987,2]
[360229945,1746640232536,-596.03,0.0001987,2]
[360229947,1746640232546,-450.0,0.0001987,2]
[360229948,1746640232556,-450.0,0.0001987,2]
[360229950,1746640232566,-450.0,0.0001987,2]
[360229953,1746640232576,-450.0,0.0001987,2]
[360229955,1746640232587,-450.0,0.0001987,2]
[360229957,1746640232597,-450.0,0.0001987,2]
[360229959,1746640232607,-450.0,0.0001987,2]
[360229961,1746640232618,-259.65181902,0.0001987,2]
[360229963,1746640232628,-500.0,0.0001987,2]
[360229965,1746640232638,-450.0,0.0001987,2]
[360229967,1746640232649,-500.0,0.0001987,2]
[360229969,1746640232658,-580.27,0.0001987,2]
[360229970,1746640232669,-500.0,0.0001987,2]
[360229973,1746640232679,-500.0,0.0001987,2]
[360229975,1746640232691,-517.78444898,0.0001987,2]
[360229977,1746640232701,-450.0,0.0001987,2]
[360229979,1746640232711,-450.0,0.0001987,2]
[360229981,1746640232721,-450.0,0.0001987,2]
[360229983,1746640232731,-450.0,0.0001987,2]
[360229985,1746640232740,-475.51806962,0.0001987,2]
[360229987,1746640232751,-150.0,0.0001987,2]
[360229989,1746640232761,-450.0,0.0001987,2]
[360229991,1746640232770,-450.0,0.0001987,2]
[360229993,1746640232780,-450.0,0.0001987,2]
[360229995,1746640232790,-500.0,0.0001987,2]
[360229997,1746640232800,-450.0,0.0001987,2]
[360229999,1746640232810,-450.0,0.0001987,2]
[360230001,1746640232820,-500.0,0.0001987,2]
[360230003,1746640232830,-500.0,0.0001987,2]
[360230005,1746640232840,-476.33421661,0.0001987,2]
[360230007,1746640232850,-450.0,0.0001987,2]
[360230009,1746640232860,-450.0,0.0001987,2]
[360230011,1746640232870,-450.0,0.0001987,2]
[360230013,1746640232880,-450.0,0.0001987,2]
[360230014,1746640232890,-450.0,0.0001987,2]
[360230016,1746640232900,-450.0,0.0001987,2]
[360230018,1746640232910,-450.0,0.0001987,2]
[360230021,1746640232920,-450.0,0.0001987,2]
[360230023,1746640232929,-450.0,0.0001987,2]
[360230025,1746640232940,-450.0,0.0001987,2]
[360230027,1746640232950,-450.0,0.0001987,2]
[360230029,1746640232960,-450.0,0.0001987,2]
[360230031,1746640232970,-450.0,0.0001987,2]
[360230032,1746640232980,-450.0,0.0001987,2]
[360230060,1746640233261,-450.0,0.0001987,2]
[360230062,1746640233272,-450.0,0.0001987,2]
[360230064,1746640233283,-450.0,0.0001987,2]
[360230066,1746640233293,-450.0,0.0001987,2]
[360230068,1746640233305,-411.59951221,0.0001987,2]
[360230070,1746640233315,-450.0,0.0001987,2]
[360230072,1746640233325,-450.0,0.0001987,2]
[360230074,1746640233336,-450.0,0.0001987,2]
[360230076,1746640233350,-450.0,0.0001987,2]
[360230078,1746640233361,-450.0,0.0001987,2]
[360230080,1746640233372,-450.0,0.0001987,2]
[360230083,1746640233383,-450.0,0.0001987,2]
[360230084,1746640233393,-417.79772408,0.0001987,2]
[360230086,1746640233403,-450.0,0.0001987,2]
[360230088,1746640233413,-450.0,0.0001987,2]
[360230090,1746640233424,-318.75807153,0.0001987,2]
[360230092,1746640233436,-450.0,0.0001987,2]
[360230094,1746640233446,-450.0,0.0001987,2]
[360230096,1746640233457,-922.38,0.0001987,2]
[360230098,1746640233467,-453.82,0.0001987,2]
[360230100,1746640233477,-450.0,0.0001987,2]
[360230102,1746640233488,-450.0,0.0001987,2]
[360230104,1746640233498,-450.0,0.0001987,2]
[360230107,1746640233509,-450.0,0.0001987,2]
[360230109,1746640233520,-450.0,0.0001987,2]
[360230111,1746640233530,-450.0,0.0001987,2]
[360230113,1746640233541,-450.0,0.0001987,2]
[360230115,1746640233552,-450.0,0.0001987,2]
[360230117,1746640233562,-450.0,0.0001987,2]
[360230119,1746640233572,-440.0,0.0001987,2]
[360230121,1746640233582,-482.1082104,0.0001987,2]
[360230123,1746640233593,-450.0,0.0001987,2]
[360230125,1746640233605,-277.99814962,0.0001987,2]
[360230127,1746640233616,-450.0,0.0001987,2]
[360230129,1746640233627,-450.0,0.0001987,2]
[360230131,1746640233638,-450.0,0.0001987,2]
[360230133,1746640233648,-601.69,0.0001987,2]
[360230135,1746640233659,-450.0,0.0001987,2]
[360230137,1746640233670,-3052.68,0.0001987,2]
[360230139,1746640233681,-971.73731922,0.00019871,2]
[360230141,1746640233692,-500.0,0.00019873,2]
[360230143,1746640233703,-313.18941228,0.00019873,2]
[360230145,1746640233713,-500.0,0.00019873,2]
[360230147,1746640233724,-500.0,0.00019873,2]
[360230149,1746640233734,-500.0,0.00019873,2]
[360230151,1746640233745,-500.0,0.00019873,2]
[360230153,1746640233755,-500.0,0.00019873,2]
[360230154,1746640233767,-500.0,0.00019873,2]
[360230155,1746640233777,-500.0,0.00019873,2]
[360230156,1746640233787,-150.0,0.0001988,2]
[360230157,1746640233797,-971.73731922,0.00019886,2]
[360230158,1746640233808,-462.50768393,0.00019886,2]
[360230159,1746640233818,-191.75367724,0.00019898,2]
[360230160,1746640233830,-689.5400135,0.00019899,2]
[360230161,1746640233841,-450.0,0.00019899,2]
[360230162,1746640233852,-450.0,0.00019899,2]
[360230163,1746640233862,-450.0,0.00019899,2]
[360230164,1746640233873,-450.0,0.00019899,2]
[360230165,1746640233883,-450.0,0.00019899,2]
[360230166,1746640233893,-450.0,0.00019899,2]
[360230167,1746640233904,-450.0,0.00019899,2]
[360230168,1746640233920,-450.0,0.00019899,2]
[360230169,1746640233931,-500.0,0.00019899,2]
[360230170,1746640233942,-450.0,0.00019899,2]
[360230171,1746640233953,-450.0,0.00019899,2]
[360230172,1746640233964,-450.0,0.00019899,2]
[360230173,1746640233975,-450.0,0.00019899,2]
[360230174,1746640233986,-450.0,0.00019899,2]
[360230175,1746640233996,-450.0,0.00019899,2]
[360230176,1746640234007,-450.0,0.00019899,2]
[360230177,1746640234017,-450.0,0.00019899,2]
[360230178,1746640234028,-450.0,0.00019899,2]
[360230179,1746640234039,-450.0,0.00019899,2]
[360230180,1746640234050,-450.0,0.00019899,2]
[360230181,1746640234061,-450.0,0.00019899,2]
[360230182,1746640234075,-450.0,0.00019899,2]
[360230183,1746640234087,-450.0,0.00019899,2]
[360230184,1746640234097,-450.0,0.00019899,2]
[360230185,1746640234107,-450.0,0.00019899,2]
[360230186,1746640234117,-450.0,0.00019899,2]
[360230187,1746640234127,-450.0,0.00019899,2]
[360230188,1746640234137,-450.0,0.00019899,2]
[360230189,1746640234147,-450.0,0.00019899,2]
[360230190,1746640234158,-450.0,0.00019899,2]
[360230191,1746640234168,-507.16,0.00019899,2]
[360230192,1746640234179,-526.75,0.00019899,2]
[360230193,1746640234190,-450.0,0.00019899,2]
[360230194,1746640234200,-589.23,0.00019899,2]
[360230195,1746640234210,-450.0,0.00019899,2]
[360230196,1746640234221,-1425.83,0.00019899,2]
[360230197,1746640234232,-500.0,0.00019899,2]
[360230198,1746640234242,-450.0,0.00019899,2]
[360230199,1746640234253,-500.0,0.00019899,2]
[360230200,1746640234263,-450.0,0.00019899,2]
[360230201,1746640234274,-450.0,0.00019899,2]
[360230202,1746640234284,-529.08,0.00019899,2]
[360230203,1746640234295,-12569.66,0.00019899,2]
[360230204,1746640234306,-2762.12837931,0.000199,2]
[360230205,1746640234317,-971.73731922,0.000199,2]
[360230206,1746640234327,-198.28819386,0.000199,2]
[360230207,1746640234338,-3229.89983167,0.000199,2]
[360230208,1746640234357,-163.02228812,0.000199,2]
[360230209,1746640234368,-1753.96511658,0.000199,2]
[360230210,1746640234378,-1831.91660464,0.000199,2]
[360230211,1746640234390,-162.39,0.00019956,2]
[360230212,1746640234400,-946.22,0.00019957,2]
[360230213,1746640234411,-1000.0,0.0001996,2]
[360230214,1746640234422,-1000.0,0.0001996,2]
[360230215,1746640234433,-1000.0,0.0001996,2]
[360230216,1746640234445,-1000.0,0.0001996,2]
[360230217,1746640234455,-1000.0,0.0001996,2]
[360230218,1746640234466,-1000.0,0.0001996,2]
[360230219,1746640234476,-1000.0,0.0001996,2]
[360230220,1746640234487,-1000.0,0.0001996,2]
[360230221,1746640234497,-584.0,0.0001996,2]
[360230222,1746640234507,-1000.0,0.0001996,2]
[360230223,1746640234519,-1000.0,0.0001996,2]
[360230224,1746640234529,-1000.0,0.0001996,2]
[360230225,1746640234540,-1000.0,0.0001996,2]
[360230226,1746640234550,-1000.0,0.0001996,2]
[360230227,1746640234561,-1000.0,0.0001996,2]
[360230228,1746640234572,-1000.0,0.0001996,2]
[360230229,1746640234583,-1000.0,0.0001996,2]
[360230230,1746640234594,-1000.0,0.0001996,2]
[360230231,1746640234605,-1000.0,0.0001996,2]
[360230232,1746640234616,-1000.0,0.0001996,2]
[360230233,1746640234627,-1000.0,0.0001996,2]
[360230234,1746640234638,-450.0,0.00019966,2]
[360230235,1746640234649,-450.0,0.00019966,2]
[360230236,1746640234660,-450.0,0.00019966,2]
[360230237,1746640234670,-500.0,0.00019966,2]
[360230238,1746640234680,-450.0,0.00019966,2]
[360230239,1746640234692,-299.94742311,0.00019966,2]
[360230240,1746640234702,-450.0,0.00019966,2]
[360230241,1746640234713,-450.0,0.00019966,2]
[360230242,1746640234723,-450.0,0.00019966,2]
[360230243,1746640234733,-450.0,0.00019966,2]
[360230244,1746640234743,-450.0,0.00019966,2]
[360230245,1746640234754,-450.0,0.00019966,2]
[360230246,1746640234765,-450.0,0.00019966,2]
[360230247,1746640234775,-450.0,0.00019966,2]
[360230248,1746640234786,-500.0,0.00019966,2]
[360230249,1746640234800,-450.0,0.00019966,2]
[360230250,1746640234811,-450.0,0.00019966,2]
[360230251,1746640234821,-450.0,0.00019966,2]
[360230252,1746640234832,-450.0,0.00019966,2]
[360230253,1746640234842,-450.0,0.00019966,2]
[360230254,1746640234852,-1449.14,0.00019966,2]
[360230255,1746640234863,-450.0,0.00019966,2]
[360230256,1746640234873,-450.0,0.00019966,2]
[360230257,1746640234883,-500.0,0.00019966,2]
[360230258,1746640234893,-343.653711,0.00019966,2]
[360230259,1746640234903,-450.0,0.00019966,2]
[360230260,1746640234913,-450.0,0.00019966,2]
[360230261,1746640234923,-450.0,0.00019966,2]
[360230262,1746640234932,-450.0,0.00019966,2]
[360230263,1746640234942,-450.0,0.00019966,2]
[360230264,1746640234952,-450.0,0.00019966,2]
[360230265,1746640234962,-13371.30352979,0.00019966,2]
[360230266,1746640235229,-627.68208494,0.00019966,2]
[360230267,1746640235245,-2896.29306527,0.00019966,2]
[360230268,1746640235259,-450.0,0.00019966,2]
[360230269,1746640235272,-450.0,0.00019966,2]
[360230270,1746640235285,-998.128065,0.00019966,2]
[360230271,1746640235298,-450.0,0.00019966,2]
[360230272,1746640235312,-500.0,0.00019967,2]
[360230273,1746640235327,-500.0,0.00019967,2]
[360230274,1746640235340,-500.0,0.00019967,2]
[360230275,1746640235356,-290.27959333,0.00019967,2]
[360230276,1746640235372,-191.29679977,0.00019967,2]
[360230277,1746640235384,-500.0,0.00019967,2]
[360230278,1746640235395,-108.70320023,0.00019967,2]
[360230279,1746640235430,-391.29679977,0.00019967,2]
[360230280,1746640235451,-329.3349218,0.00019967,2]
[360230281,1746640235471,-106.51434543,0.00019967,2]
[360230282,1746640235487,-450.0,0.00019967,2]
[360230283,1746640235501,-450.0,0.00019967,2]
[360230284,1746640235516,-205.54470291,0.00019967,2]
[360230285,1746640235531,-450.0,0.00019967,2]
[360230286,1746640235545,-525.2,0.00019967,2]
[360230287,1746640235559,-500.0,0.00019967,2]
[360230288,1746640235573,-503.88808738,0.00019967,2]
[360230289,1746640235589,-500.0,0.00019967,2]
[360230290,1746640235601,-450.0,0.00019967,2]
[360230291,1746640235617,-500.0,0.00019967,2]
[360230292,1746640235631,-500.0,0.00019967,2]
[360230293,1746640235645,-450.0,0.00019967,2]
[360230294,1746640235660,-500.0,0.00019967,2]
[360230295,1746640235673,-179.11186483,0.00019967,2]
[360230296,1746640235697,-320.88813517,0.00019967,2]
[360230297,1746640235710,-29.11186483,0.00019967,2]
[360230316,1746640237853,-450.0,0.00019899,2]
[360230317,1746640237865,-75.10372632,0.00019966,2]
[360230318,1746640237880,-374.89627368,0.00019966,2]
[360230319,1746640237892,-343.48224193,0.00019967,2]
[360230320,1746640237907,-127.40589324,0.00019967,2]
[360230321,1746640237920,-500.0,0.00019967,2]
[360230322,1746640237932,-500.0,0.00019967,2]
[360230323,1746640237944,-500.0,0.00019967,2]
[360230324,1746640237956,-83.79316576,0.00019967,2]
[360230325,1746640237971,-416.20683424,0.00019967,2]
[360230326,1746640237982,-100.32486656,0.00019967,2]
[360230329,1746640239947,-450.0,0.00019899,2]
[360230330,1746640239963,-450.0,0.00019966,2]
[360230331,1746640239977,-399.67513344,0.00019967,2]
[360230332,1746640239990,-500.0,0.00019967,2]
[360230333,1746640240003,-500.0,0.00019967,2]
[360230334,1746640240015,-500.0,0.00019967,2]
[360230335,1746640240026,-500.0,0.00019967,2]
[360230336,1746640240038,-592.57880088,0.00019967,2]
[360230337,1746640240056,-508.53,0.00019967,2]
[360230338,1746640240069,-500.0,0.00019967,2]
[360230339,1746640240081,-450.0,0.00019967,2]
[360230340,1746640240094,-500.0,0.00019967,2]
[360230341,1746640240107,-450.0,0.00019967,2]
[360230342,1746640240120,-500.0,0.00019967,2]
[360230343,1746640240132,-327.28183547,0.00019967,2]
[360230344,1746640240145,-500.0,0.00019967,2]
[360230345,1746640240157,-504.84723373,0.00019967,2]
[360230346,1746640240169,-580.92779614,0.00019967,2]
[360230347,1746640240183,-450.0,0.00019967,2]
[360230348,1746640240199,-500.0,0.00019967,2]
[360230349,1746640240212,-500.0,0.00019967,2]
[360230350,1746640240226,-450.0,0.00019967,2]
[360230351,1746640240240,-500.0,0.00019967,2]
[360230352,1746640240252,-503.09028016,0.00019967,2]
[360230353,1746640240265,-500.0,0.00019967,2]
[360230354,1746640240278,-450.0,0.00019967,2]
[360230355,1746640240290,-450.0,0.00019967,2]
[360230356,1746640240302,-450.0,0.00019967,2]
[360230357,1746640240314,-450.0,0.00019967,2]
[360230358,1746640240328,-525.74365468,0.00019967,2]
[360230359,1746640240340,-450.0,0.00019967,2]
[360230360,1746640240357,-450.0,0.00019967,2]
[360230361,1746640240369,-502.64692709,0.00019967,2]
[360230362,1746640240381,-450.0,0.00019967,2]
[360230363,1746640240394,-450.0,0.00019967,2]
[360230364,1746640240406,-450.0,0.00019967,2]
[360230365,1746640240418,-450.0,0.00019967,2]
[360230366,1746640240431,-450.0,0.00019967,2]
[360230367,1746640240444,-500.0,0.00019967,2]
[360230368,1746640240455,-500.0,0.00019967,2]
[360230369,1746640240473,-502.58909974,0.00019967,2]
[360230370,1746640240486,-597.55789544,0.00019967,2]
[360230371,1746640240498,-509.73975754,0.00019967,2]
[360230372,1746640240511,-450.0,0.00019967,2]
[360230373,1746640240523,-450.0,0.00019967,2]
[360230374,1746640240535,-511.70167596,0.00019967,2]
[360230375,1746640240549,-450.0,0.00019967,2]